fUSD/lending_fUSD_20260601
["ID","MTS","AMOUNT","RATE_DAILY","PERIOD"]
[423674271,1780294241000,-1000.0,0.00030137,50]
[423674273,1780294241000,-165.39,0.00030137,2]
[423674274,1780294241000,-165.39,0.00030137,2]
[423674277,1780294241000,-535.0,0.00030341,5]
[423674275,1780294241000,-524.37,0.000302,2]
[423674276,1780294241000,-319.7,0.00030239,2]
[423674272,1780294241000,-607.46,0.00030137,30]
[423674280,1780294241000,-1413.80722602,0.00030571,2]
[423674279,1780294241000,-150.0,0.00030479,30]
[423674282,1780294241000,-547.84143685,0.00030636,2]
[423674281,1780294241000,-482.81641262,0.00030636,2]
[423674283,1780294241000,-568.50486194,0.00030636,2]
[423674284,1780294241000,-208.30044078,0.00030636,2]
[423674285,1780294241000,-485.40184468,0.00030636,2]
[423674287,1780294241000,-536.64560037,0.00030636,2]
[423674286,1780294241000,-171.0943837,0.00030636,2]
[423674288,1780294241000,-266.80790052,0.00030636,2]
[423674289,1780294241000,-491.31731207,0.00030636,2]
[423674291,1780294241000,-505.80921008,0.00030636,2]
[423674290,1780294241000,-511.42408514,0.00030636,2]
[423674294,1780294241000,-549.76920114,0.0003064,2]
[423674321,1780294241000,-3551.0,0.00030949,2]
[423674266,1780294241000,-159.28,0.00030136,2]
[423674323,1780294241000,-1226.0,0.00030949,2]
[423674354,1780294241000,-304.49709428,0.00031227,2]
[423674355,1780294241000,-303.85119419,0.00031227,2]
[423674356,1780294241000,-221.54410081,0.00031227,2]
[423674358,1780294241000,-416.60088156,0.00031227,2]
[423674359,1780294241000,-209.26591549,0.00031227,2]
[423674357,1780294241000,-332.87217474,0.00031227,2]
[423674360,1780294241000,-647.20245957,0.00031227,2]
[423674362,1780294241000,-261.46706761,0.00031227,2]
[423674361,1780294241000,-221.29989336,0.00031227,2]
[423674364,1780294241000,-324.41663581,0.00031227,2]
[423674366,1780294241000,-251.58624212,0.00031227,2]
[423674367,1780294241000,-181.1463723,0.00031227,2]
[423674365,1780294241000,-224.0694218,0.00031227,2]
[423674368,1780294241000,-342.18876741,0.00031227,2]
[423674369,1780294241000,-411.21950331,0.00031227,2]
[423674371,1780294241000,-385.34061797,0.00031227,2]
[423674370,1780294241000,-266.50024608,0.00031227,2]
[423674372,1780294241000,-197.99995944,0.00031227,2]
[423674373,1780294241000,-715.52746716,0.00031227,2]
[423674374,1780294241000,-791.50964569,0.00031227,2]
[423674375,1780294241000,-533.61580105,0.00031227,2]
[423674377,1780294241000,-655.08974943,0.00031227,2]
[423674378,1780294241000,-681.89878019,0.00031227,2]
[423674376,1780294241000,-210.23544741,0.00031227,2]
[423674322,1780294241000,-1273.0,0.00030949,2]
[423674352,1780294241000,-758.00648258,0.00031227,2]
[423674353,1780294241000,-294.20295759,0.00031227,2]
[423674363,1780294241000,-340.00216849,0.00031227,2]
[423674351,1780294241000,-155.13659955,0.00031227,2]
[423674350,1780294241000,-730.45524913,0.00031227,2]
[423674324,1780294241000,-3639.0,0.00030949,2]
[423674325,1780294241000,-1000.01,0.00031,30]
[423674326,1780294241000,-150.0,0.00031011,2]
[423674327,1780294241000,-151.87,0.0003105,30]
[423674328,1780294241000,-200.0,0.00031096,2]
[423674329,1780294241000,-160.0,0.000312,4]
[423674331,1780294241000,-237.96096978,0.00031227,2]
[423674330,1780294241000,-222.87239707,0.00031227,2]
[423674333,1780294241000,-270.7933034,0.00031227,2]
[423674337,1780294241000,-643.75521682,0.00031227,2]
[423674334,1780294241000,-417.72401066,0.00031227,2]
[423674335,1780294241000,-234.34988741,0.00031227,2]
[423674332,1780294241000,-252.91193744,0.00031227,2]
[423674336,1780294241000,-171.20221971,0.00031227,2]
[423674347,1780294241000,-287.43389891,0.00031227,2]
[423674344,1780294241000,-207.16097966,0.00031227,2]
[423674349,1780294241000,-171.7875653,0.00031227,2]
[423674345,1780294241000,-222.89992227,0.00031227,2]
[423674346,1780294241000,-267.18361775,0.00031227,2]
[423674348,1780294241000,-242.25987319,0.00031227,2]
[423674343,1780294241000,-210.58387044,0.00031227,2]
[423674342,1780294241000,-311.74385283,0.00031227,2]
[423674340,1780294241000,-194.31913229,0.00031227,2]
[423674339,1780294241000,-220.45543173,0.00031227,2]
[423674338,1780294241000,-161.80700972,0.00031227,2]
[423674341,1780294241000,-221.32073404,0.00031227,2]
[423674423,1780294242000,-234.0,0.00031723,30]
[423674418,1780294242000,-157.0,0.00031723,30]
[423674421,1780294242000,-205.0,0.00031723,30]
[423674424,1780294242000,-240.0,0.00031726,30]
[423674416,1780294242000,-161.0,0.00031723,30]
[423674419,1780294242000,-155.0,0.00031723,30]
[423674413,1780294242000,-607.46,0.00031507,30]
[423674420,1780294242000,-486.0,0.00031723,30]
[423674415,1780294242000,-151.0,0.00031723,30]
[423674414,1780294242000,-1000.01,0.00031622,30]
[423674409,1780294242000,-355.03,0.000313,7]
[423674425,1780294242000,-301.0,0.00031726,30]
[423674417,1780294242000,-937.0,0.00031723,30]
[423674422,1780294242000,-418.0,0.00031723,30]
[423674439,1780294242000,-927.23596304,0.00031819,2]
[423674427,1780294242000,-600.0,0.00031726,30]
[423674429,1780294242000,-804.69402103,0.00031819,2]
[423674430,1780294242000,-913.06906141,0.00031819,2]
[423674431,1780294242000,-947.50810323,0.00031819,2]
[423674432,1780294242000,-809.00307447,0.00031819,2]
[423674428,1780294242000,-524.0,0.00031726,30]
[423674433,1780294242000,-989.38705711,0.00031819,2]
[423674434,1780294242000,-861.28306232,0.00031819,2]
[423674438,1780294242000,-843.01535014,0.00031819,2]
[423674437,1780294242000,-771.21995378,0.00031819,2]
[423674436,1780294242000,-852.37347524,0.00031819,2]
[423674435,1780294242000,-818.86218679,0.00031819,2]
[423674440,1780294242000,-828.48419061,0.00031824,2]
[423674407,1780294242000,-453.47733283,0.00031234,2]
[423674426,1780294242000,-153.0,0.00031726,30]
[423674408,1780294242000,-255.88501607,0.00031234,2]
[423674381,1780294242000,-583.24123418,0.00031227,2]
[423674412,1780294242000,-535.0,0.00031409,6]
[423674382,1780294242000,-741.78877043,0.00031227,2]
[423674383,1780294242000,-662.78735248,0.00031232,2]
[423674386,1780294242000,-694.97876597,0.00031232,2]
[423674443,1780294242000,-1046.53861481,0.00031824,2]
[423674380,1780294242000,-674.41228011,0.00031227,2]
[423674379,1780294242000,-616.97596303,0.00031227,2]
[423674385,1780294242000,-733.02560152,0.00031232,2]
[423674384,1780294242000,-539.47686515,0.00031232,2]
[423674388,1780294242000,-1146.0,0.00031233,5]
[423674387,1780294242000,-837.23089185,0.00031232,2]
[423674390,1780294242000,-223.44561191,0.00031234,2]
[423674400,1780294242000,-636.74054962,0.00031234,2]
[423674396,1780294242000,-183.08078601,0.00031234,2]
[423674397,1780294242000,-623.31384598,0.00031234,2]
[423674399,1780294242000,-223.19309724,0.00031234,2]
[423674392,1780294242000,-286.76892017,0.00031234,2]
[423674391,1780294242000,-370.31136806,0.00031234,2]
[423674394,1780294242000,-286.25777189,0.00031234,2]
[423674393,1780294242000,-294.77597645,0.00031234,2]
[423674395,1780294242000,-303.50202609,0.00031234,2]
[423674389,1780294242000,-221.72185944,0.00031234,2]
[423674398,1780294242000,-171.01848718,0.00031234,2]
[423674401,1780294242000,-183.38933712,0.00031234,2]
[423674402,1780294242000,-388.92477038,0.00031234,2]
[423674404,1780294242000,-221.41042077,0.00031234,2]
[423674403,1780294242000,-296.19107521,0.00031234,2]
[423674405,1780294242000,-339.33268021,0.00031234,2]
[423674410,1780294242000,-1000.01,0.00031311,30]
[423674411,1780294242000,-2000.0,0.00031316,120]
[423674406,1780294242000,-403.38916776,0.00031234,2]
[423674442,1780294242000,-868.72345747,0.00031824,2]
[423674444,1780294242000,-795.92568702,0.00031825,2]
[423674446,1780294242000,-535.0,0.00031943,7]
[423674480,1780294242000,-486.0,0.00032723,30]
[423674479,1780294242000,-155.0,0.00032723,30]
[423674483,1780294242000,-234.0,0.00032723,30]
[423674481,1780294242000,-205.0,0.00032723,30]
[423674484,1780294242000,-240.0,0.00032726,30]
[423674485,1780294242000,-301.0,0.00032726,30]
[423674487,1780294242000,-600.0,0.00032726,30]
[423674482,1780294242000,-418.0,0.00032723,30]
[423674486,1780294242000,-153.0,0.00032726,30]
[423674488,1780294242000,-524.0,0.00032726,30]
[423674489,1780294242000,-1413.80722602,0.00032765,2]
[423674491,1780294242000,-840.546746,0.00032877,15]
[423674490,1780294242000,-1000.01,0.00032867,30]
[423674492,1780294242000,-477.40083066,0.00032877,2]
[423674494,1780294242000,-164.0,0.00032877,10]
[423674495,1780294242000,-500.0,0.00032877,2]
[423674496,1780294242000,-500.0,0.00032877,2]
[423674493,1780294242000,-350.84,0.00032877,2]
[423674500,1780294242000,-423.5684792,0.00032877,2]
[423674498,1780294242000,-500.0,0.00032877,2]
[423674502,1780294242000,-369.45,0.000329,120]
[423674451,1780294242000,-355.03,0.000323,7]
[423674497,1780294242000,-500.0,0.00032877,2]
[423674499,1780294242000,-500.0,0.00032877,2]
[423674501,1780294242000,-197.99704263,0.00032877,30]
[423674505,1780294242000,-400.0,0.00032955,2]
[423674506,1780294242000,-400.0,0.00032955,2]
[423674507,1780294242000,-404.45563422,0.00032955,2]
[423674508,1780294242000,-209.21103511,0.00033,7]
[423674477,1780294242000,-937.0,0.00032723,30]
[423674478,1780294242000,-157.0,0.00032723,30]
[423674503,1780294242000,-400.0,0.00032955,2]
[423674471,1780294242000,-1099.53840228,0.00032711,2]
[423674476,1780294242000,-166.0,0.00032723,30]
[423674449,1780294242000,-319.7,0.0003221,5]
[423674441,1780294242000,-916.2820019,0.00031824,2]
[423674448,1780294242000,-160.0,0.000322,7]
[423674450,1780294242000,-1000.01,0.00032244,30]
[423674447,1780294242000,-200.0,0.00032055,2]
[423674452,1780294242000,-864.0,0.00032302,30]
[423674453,1780294242000,-1485.054,0.00032346,32]
[423674454,1780294242000,-492.74419802,0.00032406,2]
[423674455,1780294242000,-535.0,0.00032477,7]
[423674456,1780294242000,-1000.0,0.000325,2]
[423674459,1780294242000,-1000.01,0.00032556,30]
[423674457,1780294242000,-1000.0,0.000325,7]
[423674458,1780294242000,-253.13,0.00032534,30]
[423674445,1780294242000,-1000.01,0.00031933,30]
[423674462,1780294242000,-1095.68287369,0.00032707,2]
[423674460,1780294242000,-150.0,0.00032562,2]
[423674474,1780294242000,-955.11082443,0.00032713,2]
[423674475,1780294242000,-151.0,0.00032723,30]
[423674473,1780294242000,-1255.84633778,0.00032711,2]
[423674470,1780294242000,-1112.68315565,0.00032707,2]
[423674469,1780294242000,-1011.61842017,0.00032707,2]
[423674472,1780294242000,-1042.46814896,0.00032711,2]
[423674466,1780294242000,-982.63462414,0.00032707,2]
[423674467,1780294242000,-1022.84817029,0.00032707,2]
[423674465,1780294242000,-1187.26446853,0.00032707,2]
[423674464,1780294242000,-970.80368936,0.00032707,2]
[423674463,1780294242000,-1137.00972387,0.00032707,2]
[423674468,1780294242000,-925.46394454,0.00032707,2]
[423674461,1780294242000,-965.63282523,0.00032707,2]
[423674546,1780294243000,-200.0,0.00033796,2]
[423674543,1780294243000,-200.0,0.00033796,2]
[423674544,1780294243000,-200.0,0.00033796,2]
[423674540,1780294243000,-200.0,0.00033796,2]
[423674534,1780294243000,-200.0,0.00033796,2]
[423674538,1780294243000,-200.0,0.00033796,2]
[423674539,1780294243000,-200.0,0.00033796,2]
[423674542,1780294243000,-200.0,0.00033796,2]
[423674533,1780294243000,-524.0,0.00033726,30]
[423674537,1780294243000,-200.0,0.00033796,2]
[423674556,1780294243000,-200.0,0.00033796,2]
[423674555,1780294243000,-200.0,0.00033796,2]
[423674547,1780294243000,-200.0,0.00033796,2]
[423674548,1780294243000,-200.0,0.00033796,2]
[423674550,1780294243000,-200.0,0.00033796,2]
[423674554,1780294243000,-200.0,0.00033796,2]
[423674549,1780294243000,-200.0,0.00033796,2]
[423674553,1780294243000,-166.0,0.00033796,2]
[423674552,1780294243000,-200.0,0.00033796,2]
[423674558,1780294243000,-200.0,0.00033796,2]
[423674557,1780294243000,-200.0,0.00033796,2]
[423674531,1780294243000,-153.0,0.00033726,30]
[423674545,1780294243000,-200.0,0.00033796,2]
[423674535,1780294243000,-200.0,0.00033796,2]
[423674518,1780294243000,-201.97385028,0.00033533,30]
[423674532,1780294243000,-600.0,0.00033726,30]
[423674560,1780294243000,-200.0,0.00033796,2]
[423674509,1780294243000,-535.0,0.00033011,8]
[423674512,1780294243000,-160.0,0.000332,9]
[423674510,1780294243000,-350.0,0.00033014,5]
[423674511,1780294243000,-1000.01,0.00033178,30]
[423674514,1780294243000,-1000.0,0.000334,120]
[423674513,1780294243000,-1500.0,0.000334,7]
[423674516,1780294243000,-355.03,0.000335,30]
[423674515,1780294243000,-1000.01,0.00033489,30]
[423674517,1780294243000,-1001.05083706,0.0003353,2]
[423674541,1780294243000,-200.0,0.00033796,2]
[423674519,1780294243000,-535.0,0.00033545,9]
[423674522,1780294243000,-937.0,0.00033723,30]
[423674528,1780294243000,-234.0,0.00033723,30]
[423674520,1780294243000,-220.77999999,0.00033562,30]
[423674525,1780294243000,-486.0,0.00033723,30]
[423674524,1780294243000,-155.0,0.00033723,30]
[423674527,1780294243000,-418.0,0.00033723,30]
[423674529,1780294243000,-240.0,0.00033726,30]
[423674523,1780294243000,-157.0,0.00033723,30]
[423674526,1780294243000,-205.0,0.00033723,30]
[423674530,1780294243000,-301.0,0.00033726,30]
[423674521,1780294243000,-151.0,0.00033723,30]
[423674570,1780294243000,-200.0,0.00033796,2]
[423674585,1780294243000,-200.0,0.00033796,2]
[423674562,1780294243000,-200.0,0.00033796,2]
[423674593,1780294243000,-200.0,0.00033796,2]
[423674595,1780294243000,-155.0,0.00033796,2]
[423674592,1780294243000,-200.0,0.00033796,2]
[423674596,1780294243000,-500.0,0.00033796,2]
[423674598,1780294243000,-500.0,0.00033796,2]
[423674597,1780294243000,-500.0,0.00033796,2]
[423674599,1780294243000,-500.0,0.00033796,2]
[423674601,1780294243000,-500.0,0.00033796,2]
[423674603,1780294243000,-1000.01,0.000338,30]
[423674604,1780294243000,-1357.0,0.00033949,2]
[423674594,1780294243000,-200.0,0.00033796,2]
[423674600,1780294243000,-500.0,0.00033796,2]
[423674605,1780294243000,-3551.0,0.00033949,2]
[423674606,1780294243000,-1273.0,0.00033949,2]
[423674607,1780294243000,-1226.0,0.00033949,2]
[423674613,1780294243000,-1278.29668597,0.00034038,2]
[423674608,1780294243000,-3639.0,0.00033949,2]
[423674609,1780294243000,-350.0,0.00033973,5]
[423674614,1780294243000,-1326.51134452,0.00034038,2]
[423674610,1780294243000,-588.01,0.00033975,120]
[423674611,1780294243000,-151.0,0.00034035,14]
[423674561,1780294243000,-200.0,0.00033796,2]
[423674602,1780294243000,-532.0,0.00033796,2]
[423674591,1780294243000,-200.0,0.00033796,2]
[423674612,1780294243000,-1126.57162944,0.00034038,2]
[423674590,1780294243000,-200.0,0.00033796,2]
[423674559,1780294243000,-200.0,0.00033796,2]
[423674572,1780294243000,-200.0,0.00033796,2]
[423674563,1780294243000,-200.0,0.00033796,2]
[423674568,1780294243000,-200.0,0.00033796,2]
[423674565,1780294243000,-200.0,0.00033796,2]
[423674566,1780294243000,-200.0,0.00033796,2]
[423674589,1780294243000,-200.0,0.00033796,2]
[423674569,1780294243000,-200.0,0.00033796,2]
[423674574,1780294243000,-200.0,0.00033796,2]
[423674575,1780294243000,-200.0,0.00033796,2]
[423674578,1780294243000,-200.0,0.00033796,2]
[423674564,1780294243000,-200.0,0.00033796,2]
[423674582,1780294243000,-200.0,0.00033796,2]
[423674615,1780294243000,-1162.99643766,0.00034038,2]
[423674586,1780294243000,-200.0,0.00033796,2]
[423674584,1780294243000,-200.0,0.00033796,2]
[423674579,1780294243000,-200.0,0.00033796,2]
[423674576,1780294243000,-200.0,0.00033796,2]
[423674583,1780294243000,-200.0,0.00033796,2]
[423674581,1780294243000,-200.0,0.00033796,2]
[423674587,1780294243000,-200.0,0.00033796,2]
[423674580,1780294243000,-200.0,0.00033796,2]
[423674588,1780294243000,-200.0,0.00033796,2]
[423674649,1780294244000,-1001.0,0.00034849,120]
[423674646,1780294244000,-600.0,0.00034726,30]
[423674645,1780294244000,-153.0,0.00034726,30]
[423674642,1780294244000,-234.0,0.00034723,30]
[423674647,1780294244000,-524.0,0.00034726,30]
[423674644,1780294244000,-301.0,0.00034726,30]
[423674640,1780294244000,-205.0,0.00034723,30]
[423674643,1780294244000,-240.0,0.00034726,30]
[423674655,1780294244000,-209.21103511,0.00035,30]
[423674666,1780294244000,-150.0,0.00035482,7]
[423674650,1780294244000,-355.03,0.000349,30]
[423674651,1780294244000,-350.0,0.00034931,5]
[423674652,1780294244000,-1413.80722602,0.00034959,2]
[423674654,1780294244000,-1002.41572871,0.00035,14]
[423674653,1780294244000,-22202.47138766,0.00035,7]
[423674656,1780294244000,-2000.0,0.00035,3]
[423674665,1780294244000,-4918.90261399,0.00035385,5]
[423674659,1780294244000,-2000.0,0.00035128,69]
[423674657,1780294244000,-1000.0,0.00035,120]
[423674641,1780294244000,-418.0,0.00034723,30]
[423674648,1780294244000,-1500.0,0.00034795,2]
[423674635,1780294244000,-151.0,0.00034723,30]
[423674628,1780294244000,-150.0,0.0003419,2]
[423674639,1780294244000,-486.0,0.00034723,30]
[423674663,1780294244000,-1327.34158843,0.00035297,2]
[423674619,1780294244000,-1298.13034826,0.00034038,2]
[423674622,1780294244000,-1069.39158301,0.00034043,2]
[423674616,1780294244000,-1146.4070615,0.00034038,2]
[423674617,1780294244000,-1193.32286533,0.00034038,2]
[423674620,1780294244000,-1216.21284046,0.00034043,2]
[423674621,1780294244000,-1465.15406074,0.00034043,2]
[423674618,1780294244000,-1180.22149019,0.00034038,2]
[423674625,1780294244000,-492.74419802,0.00034142,2]
[423674623,1780294244000,-799.62201136,0.00034078,9]
[423674630,1780294244000,-400.0,0.00034453,2]
[423674627,1780294244000,-319.7,0.00034182,7]
[423674624,1780294244000,-535.0,0.00034079,9]
[423674626,1780294244000,-2000.0,0.00034169,38]
[423674629,1780294244000,-160.0,0.000342,11]
[423674631,1780294244000,-400.0,0.00034453,2]
[423674633,1780294244000,-160.80147869,0.00034589,30]
[423674632,1780294244000,-400.0,0.00034453,2]
[423674634,1780294244000,-535.0,0.00034613,10]
[423674636,1780294244000,-937.0,0.00034723,30]
[423674638,1780294244000,-155.0,0.00034723,30]
[423674637,1780294244000,-157.0,0.00034723,30]
[423674664,1780294244000,-10262.09196246,0.00035385,5]
[423674660,1780294244000,-373.36,0.0003513,30]
[423674661,1780294244000,-535.0,0.00035147,10]
[423674703,1780294244000,-300.0,0.00035509,2]
[423674702,1780294244000,-301.20887308,0.00035509,2]
[423674691,1780294244000,-403.33114859,0.00035509,2]
[423674693,1780294244000,-535.13791573,0.00035509,2]
[423674697,1780294244000,-300.0,0.00035509,2]
[423674701,1780294244000,-300.0,0.00035509,2]
[423674699,1780294244000,-300.0,0.00035509,2]
[423674698,1780294244000,-302.43156196,0.00035509,2]
[423674694,1780294244000,-300.0,0.00035509,2]
[423674696,1780294244000,-727.59512892,0.00035509,2]
[423674695,1780294244000,-313.96425971,0.00035509,2]
[423674704,1780294244000,-300.0,0.00035509,2]
[423674709,1780294244000,-1264.8403207,0.00035509,2]
[423674705,1780294244000,-300.0,0.00035509,2]
[423674706,1780294244000,-300.0,0.00035509,2]
[423674707,1780294244000,-300.0,0.00035509,2]
[423674711,1780294244000,-344.68554568,0.00035509,2]
[423674708,1780294244000,-300.0,0.00035509,2]
[423674710,1780294244000,-300.0,0.00035509,2]
[423674712,1780294244000,-528.00893317,0.00035509,2]
[423674662,1780294244000,-160.0,0.000352,13]
[423674692,1780294244000,-1069.20589958,0.00035509,2]
[423674689,1780294244000,-300.0,0.00035509,2]
[423674700,1780294244000,-302.5544213,0.00035509,2]
[423674687,1780294244000,-300.0,0.00035509,2]
[423674667,1780294244000,-150.0,0.00035482,7]
[423674688,1780294244000,-300.0,0.00035509,2]
[423674677,1780294244000,-300.0,0.00035509,2]
[423674672,1780294244000,-183.0,0.000355,2]
[423674675,1780294244000,-300.0,0.00035509,2]
[423674668,1780294244000,-150.0,0.00035482,7]
[423674669,1780294244000,-150.0,0.00035482,7]
[423674676,1780294244000,-300.0,0.00035509,2]
[423674674,1780294244000,-250.0,0.00035502,7]
[423674671,1780294244000,-150.0,0.00035482,7]
[423674670,1780294244000,-150.0,0.00035482,7]
[423674681,1780294244000,-300.0,0.00035509,2]
[423674686,1780294244000,-605.72319923,0.00035509,2]
[423674673,1780294244000,-1676.7,0.00035502,2]
[423674690,1780294244000,-300.0,0.00035509,2]
[423674682,1780294244000,-300.0,0.00035509,2]
[423674684,1780294244000,-300.0,0.00035509,2]
[423674685,1780294244000,-300.0,0.00035509,2]
[423674683,1780294244000,-300.0,0.00035509,2]
[423674680,1780294244000,-493.7312536,0.00035509,2]
[423674679,1780294244000,-300.0,0.00035509,2]
[423674678,1780294244000,-300.0,0.00035509,2]
[423674747,1780294245000,-300.0,0.00035509,2]
[423674756,1780294245000,-300.0,0.00035509,2]
[423674751,1780294245000,-300.0,0.00035509,2]
[423674749,1780294245000,-300.0,0.00035509,2]
[423674754,1780294245000,-300.0,0.00035509,2]
[423674744,1780294245000,-310.5091063,0.00035509,2]
[423674743,1780294245000,-485.1393222,0.00035509,2]
[423674750,1780294245000,-300.0,0.00035509,2]
[423674748,1780294245000,-300.0,0.00035509,2]
[423674746,1780294245000,-300.0,0.00035509,2]
[423674752,1780294245000,-1097.19712337,0.00035509,2]
[423674758,1780294245000,-300.0,0.00035509,2]
[423674757,1780294245000,-300.0,0.00035509,2]
[423674765,1780294245000,-300.0,0.00035509,2]
[423674759,1780294245000,-300.0,0.00035509,2]
[423674762,1780294245000,-493.7312536,0.00035509,2]
[423674761,1780294245000,-300.0,0.00035509,2]
[423674770,1780294245000,-300.0,0.00035509,2]
[423674760,1780294245000,-300.0,0.00035509,2]
[423674763,1780294245000,-493.43600226,0.00035509,2]
[423674771,1780294245000,-300.0,0.00035509,2]
[423674767,1780294245000,-300.0,0.00035509,2]
[423674766,1780294245000,-300.0,0.00035509,2]
[423674769,1780294245000,-300.0,0.00035509,2]
[423674764,1780294245000,-366.46081823,0.00035509,2]
[423674742,1780294245000,-300.0,0.00035509,2]
[423674755,1780294245000,-300.0,0.00035509,2]
[423674745,1780294245000,-300.0,0.00035509,2]
[423674720,1780294245000,-300.0,0.00035509,2]
[423674741,1780294245000,-300.0,0.00035509,2]
[423674768,1780294245000,-605.72319923,0.00035509,2]
[423674714,1780294245000,-300.0,0.00035509,2]
[423674716,1780294245000,-866.20938408,0.00035509,2]
[423674715,1780294245000,-300.0,0.00035509,2]
[423674713,1780294245000,-300.0,0.00035509,2]
[423674722,1780294245000,-1149.66942362,0.00035509,2]
[423674721,1780294245000,-300.0,0.00035509,2]
[423674717,1780294245000,-951.01509113,0.00035509,2]
[423674718,1780294245000,-1801.03876644,0.00035509,2]
[423674719,1780294245000,-300.0,0.00035509,2]
[423674733,1780294245000,-464.82673062,0.00035509,2]
[423674724,1780294245000,-300.0,0.00035509,2]
[423674732,1780294245000,-300.0,0.00035509,2]
[423674723,1780294245000,-310.26144151,0.00035509,2]
[423674725,1780294245000,-300.0,0.00035509,2]
[423674728,1780294245000,-300.0,0.00035509,2]
[423674734,1780294245000,-300.0,0.00035509,2]
[423674730,1780294245000,-595.23053793,0.00035509,2]
[423674729,1780294245000,-300.0,0.00035509,2]
[423674727,1780294245000,-300.0,0.00035509,2]
[423674731,1780294245000,-300.0,0.00035509,2]
[423674726,1780294245000,-1636.54491639,0.00035509,2]
[423674735,1780294245000,-578.82573767,0.00035509,2]
[423674740,1780294245000,-300.0,0.00035509,2]
[423674738,1780294245000,-300.0,0.00035509,2]
[423674739,1780294245000,-300.0,0.00035509,2]
[423674737,1780294245000,-452.86682265,0.00035509,2]
[423674736,1780294245000,-300.0,0.00035509,2]
[423674783,1780294245000,-300.0,0.00035509,2]
[423674753,1780294245000,-300.0,0.00035509,2]
[423674772,1780294245000,-300.0,0.00035509,2]
[423674801,1780294245000,-300.0,0.00035509,2]
[423674805,1780294245000,-300.0,0.00035509,2]
[423674803,1780294245000,-310.26144151,0.00035509,2]
[423674804,1780294245000,-300.0,0.00035509,2]
[423674809,1780294245000,-300.0,0.00035509,2]
[423674811,1780294245000,-300.0,0.00035509,2]
[423674816,1780294245000,-300.0,0.00035509,2]
[423674815,1780294245000,-578.82573767,0.00035509,2]
[423674820,1780294245000,-300.0,0.00035509,2]
[423674819,1780294245000,-300.0,0.00035509,2]
[423674818,1780294245000,-300.0,0.00035509,2]
[423674812,1780294245000,-300.0,0.00035509,2]
[423674810,1780294245000,-595.23053793,0.00035509,2]
[423674813,1780294245000,-464.82673062,0.00035509,2]
[423674817,1780294245000,-452.86682265,0.00035509,2]
[423674814,1780294245000,-300.0,0.00035509,2]
[423674822,1780294245000,-300.0,0.00035509,2]
[423674825,1780294245000,-218.25,0.00035511,120]
[423674823,1780294245000,-485.1393222,0.00035509,2]
[423674830,1780294245000,-500.0,0.00035593,2]
[423674828,1780294245000,-581.09,0.00035554,2]
[423674829,1780294245000,-150.0,0.00035568,7]
[423674827,1780294245000,-500.0,0.00035554,2]
[423674824,1780294245000,-310.5091063,0.00035509,2]
[423674826,1780294245000,-500.0,0.00035554,2]
[423674831,1780294245000,-500.0,0.00035593,2]
[423674773,1780294245000,-403.33114859,0.00035509,2]
[423674802,1780294245000,-1149.66942362,0.00035509,2]
[423674806,1780294245000,-1636.54491639,0.00035509,2]
[423674821,1780294245000,-300.0,0.00035509,2]
[423674800,1780294245000,-300.0,0.00035509,2]
[423674798,1780294245000,-1801.03876644,0.00035509,2]
[423674775,1780294245000,-535.13791573,0.00035509,2]